bitfinex-derivatives/quotes_BTCF0:USTF0_20210104
["timestamp","ask_amount","ask_price","bid_price","bid_amount"]
[1609788626381,0.2856,31463.0,31431.0,4.95012608]
[1609788626581,0.2856,31463.0,31438.0,0.14982]
[1609788626781,0.15951,31455.0,31438.0,0.14982]
[1609788628484,0.15951,31455.0,31443.0,0.13632608]
[1609788628682,0.15951,31455.0,31431.0,4.8138]
[1609788629485,0.15951,31455.0,31432.0,0.096]
[1609788631087,0.15951,31455.0,31432.0,0.22185]
[1609788631285,0.15951,31455.0,31432.0,0.12585]
[1609788632286,0.15951,31455.0,31433.0,0.0968]
[1609788632486,0.15951,31455.0,31448.0,0.13632608]
[1609788634594,0.13632608,31449.0,31448.0,0.13632608]
[1609788635798,0.46554068,31452.0,31448.0,0.13632608]
[1609788636000,0.15951,31455.0,31448.0,0.13632608]
[1609788636503,0.15951,31455.0,31452.0,0.13632608]
[1609788638508,0.41382608,31453.0,31452.0,0.13632608]
[1609788638708,0.41382608,31453.0,31452.0,0.23212608]
[1609788638908,0.41382608,31453.0,31441.0,0.094]
[1609788640512,0.2775,31453.0,31448.0,0.13632608]
[1609788642514,0.41382608,31453.0,31448.0,0.13632608]
[1609788644415,0.15951,31455.0,31448.0,0.13632608]
[1609788644615,0.15951,31455.0,31454.0,0.13632608]
[1609788644816,0.69825223,31462.0,31454.0,0.13632608]
[1609788645017,0.69825223,31462.0,31454.0,4.23072608]
[1609788646217,0.83630841,31464.0,31454.0,4.23072608]
[1609788646517,0.83630841,31464.0,31463.0,0.13632608]
[1609788646718,0.80640841,31464.0,31463.0,0.13632608]
[1609788646917,0.79680841,31464.0,31463.0,0.89482608]
[1609788647119,0.13632608,31473.0,31463.0,0.89482608]
[1609788647317,0.13632608,31473.0,31463.0,0.13632608]
[1609788647618,0.13632608,31473.0,31468.0,4.5333]
[1609788647818,0.94908651,31484.0,31468.0,4.5333]
[1609788648219,0.68215332,31481.0,31468.0,4.5333]
[1609788648619,0.79733332,31481.0,31480.0,0.13632608]
[1609788649019,0.79733332,31481.0,31468.0,4.5333]
[1609788649722,0.79733332,31481.0,31462.0,0.15068]
[1609788650124,0.11518,31481.0,31462.0,0.15068]
[1609788650723,0.11518,31481.0,31471.0,0.13632608]
[1609788650922,0.11518,31481.0,31472.0,0.094]
[1609788652025,0.65,31480.0,31462.0,0.15068]
[1609788652225,0.11518,31481.0,28453.0,0.03056386]
[1609788652427,3.8614,31475.0,31443.0,4.5245]
[1609788652825,3.8614,31475.0,31455.0,0.13632608]
[1609788653428,3.8614,31475.0,31449.0,0.0965]
[1609788653625,0.2843,31480.0,31449.0,0.0965]
[1609788653825,0.3795,31480.0,31449.0,0.0965]
[1609788654027,0.14703,31467.0,31441.0,0.0943]
[1609788654630,0.14703,31467.0,31437.0,0.0945]
[1609788654830,0.14703,31467.0,31451.0,0.13632608]
[1609788655232,0.56771948,31466.0,31451.0,0.13632608]
[1609788656033,0.56771948,31466.0,31433.0,0.11921]
[1609788656233,0.56771948,31466.0,31439.0,5.0538]
[1609788656433,0.56771948,31466.0,31440.0,0.0966]
[1609788656834,0.56771948,31466.0,31449.0,0.13632608]
[1609788657036,0.56771948,31466.0,31450.0,0.0941]
[1609788658134,0.56771948,31466.0,31449.0,0.13632608]
[1609788658942,0.56771948,31466.0,31439.0,5.0538]
[1609788659149,0.56771948,31466.0,31442.0,0.09733]
[1609788659335,0.56771948,31466.0,31443.0,0.0962]
[1609788660836,0.14703,31467.0,31465.0,0.13632608]
[1609788661037,0.08433,31467.0,31465.0,0.13632608]
[1609788661345,0.47177095,31471.0,31465.0,0.13632608]
[1609788661541,0.45827095,31471.0,31465.0,0.13632608]
[1609788661938,0.45827095,31471.0,31466.0,0.0943]
[1609788662143,0.45827095,31471.0,31465.0,0.13632608]
[1609788662351,0.45827095,31471.0,31465.0,5.05782608]
[1609788662544,0.68099461,31485.0,31465.0,5.05782608]
[1609788662957,0.68099461,31485.0,31480.0,0.13632608]
[1609788663144,0.68099461,31485.0,31475.0,0.0945]
[1609788663841,0.13109,31489.0,31471.0,0.13313]
[1609788664844,0.13109,31489.0,31487.0,0.13632608]
[1609788665444,0.13109,31489.0,31479.0,3.9077]
[1609788666948,0.13632608,31480.0,31474.0,0.13632608]
[1609788668152,0.13632608,31480.0,31475.0,0.0951]
[1609788668352,0.13632608,31480.0,31476.0,0.0954]
[1609788668853,0.13632608,31480.0,31479.0,0.13632608]
[1609788669054,0.16096,31482.0,31479.0,0.13632608]
[1609788670860,0.13632608,31480.0,31479.0,0.13632608]
[1609788671863,0.16096,31482.0,31479.0,0.13632608]
[1609788672065,3.6624,31488.0,31479.0,0.13632608]
[1609788672262,0.13109,31489.0,31479.0,0.13632608]
[1609788672462,0.2962,31493.0,31479.0,0.13632608]
[1609788672863,0.13632608,31481.0,31479.0,0.13632608]
[1609788673364,0.12694,31487.0,31479.0,0.13632608]
[1609788674967,0.12694,31487.0,31485.0,0.13632608]
[1609788675467,0.12694,31487.0,31486.0,0.0938]
[1609788676166,0.2962,31493.0,31486.0,0.0938]
[1609788676567,0.2962,31493.0,31485.0,0.13632608]
[1609788676967,0.2962,31493.0,31490.0,0.13632608]
[1609788677465,0.1092,31496.0,31490.0,0.13632608]
[1609788678968,0.13632608,31492.0,31490.0,0.13632608]
[1609788679568,0.13632608,31492.0,31491.0,0.0956]
[1609788681771,0.1092,31496.0,31491.0,0.0956]
[1609788681972,0.00399969,31502.0,31491.0,0.0956]
[1609788682172,0.2342,31494.0,31491.0,0.0956]
[1609788682871,0.2198,31494.0,31491.0,0.0956]
[1609788683574,0.1557,31494.0,31491.0,0.0956]
[1609788683974,0.1557,31494.0,31490.0,0.13632608]
[1609788684184,0.1557,31494.0,31486.0,0.12007]
[1609788684387,0.26633,31494.0,31471.0,0.14702]
[1609788684975,0.26633,31494.0,31484.0,0.13632608]
[1609788685180,0.26633,31494.0,31485.0,0.0947]
[1609788686980,0.13632608,31486.0,31469.0,4.32132608]
[1609788687182,0.27560608,31486.0,31469.0,0.13632608]
[1609788689080,0.13632608,31470.0,31455.0,3.8727]
[1609788689281,0.13632608,31470.0,31435.0,2.39631729]
[1609788689481,0.13632608,31470.0,31443.0,3.8325]
[1609788689680,3.6892,31467.0,31443.0,3.8325]
[1609788689880,0.13632608,31470.0,31435.0,2.39631729]
[1609788690081,3.9585,31465.0,31445.0,2.00216073]
[1609788691081,3.9585,31465.0,31451.0,0.13632608]
[1609788691281,3.9585,31465.0,31452.0,0.096]
[1609788691483,3.9585,31465.0,31451.0,0.13632608]
[1609788692082,0.14315,31466.0,31451.0,0.13632608]
[1609788692988,0.14315,31466.0,31462.0,0.13632608]
[1609788693387,0.14315,31466.0,31456.0,0.0953]
[1609788693589,0.14315,31466.0,31445.0,0.11934]
[1609788695089,0.14315,31466.0,31462.0,0.13632608]
[1609788695589,0.10115,31473.0,31462.0,0.13632608]
[1609788696091,4.4978,31479.0,31445.0,0.11934]
[1609788696291,4.4978,31479.0,31443.0,3.8298]
[1609788696491,4.6343,31479.0,31443.0,3.8298]
[1609788696893,4.6343,31479.0,31444.0,0.0951]
[1609788697092,4.6343,31479.0,31458.0,0.13632608]
[1609788697291,4.6343,31479.0,31459.0,0.0966]
[1609788698994,0.13632608,31460.0,31459.0,0.0966]
[1609788699193,0.13632608,31460.0,31458.0,0.13632608]
[1609788699396,0.13632608,31460.0,31458.0,0.08632608]
[1609788700095,0.13632608,31460.0,31459.0,0.094]
[1609788701397,0.10948,31471.0,31459.0,0.094]
[1609788702999,0.13632608,31460.0,31459.0,0.094]
[1609788704603,0.13632608,31460.0,31455.0,0.13632608]
[1609788705000,0.13632608,31456.0,31455.0,0.13632608]
[1609788707315,0.10948,31471.0,31455.0,0.13632608]
[1609788707515,4.6343,31479.0,31455.0,0.13632608]
[1609788709011,0.13632608,31456.0,31455.0,0.13632608]
[1609788712417,0.12422608,31456.0,31455.0,0.13632608]
[1609788712615,0.10842608,31456.0,31455.0,0.13632608]
[1609788714419,0.05462608,31456.0,31455.0,0.13632608]
[1609788714819,4.6343,31479.0,31455.0,0.13632608]
[1609788715022,4.6343,31479.0,31459.0,0.13632608]
[1609788715721,4.6343,31479.0,31460.0,0.0941]
[1609788717125,0.13632608,31461.0,31460.0,0.0941]
[1609788718829,0.13632608,31461.0,31459.0,0.13632608]
[1609788719730,0.13632608,31461.0,31460.0,0.0959]
[1609788721134,0.13632608,31461.0,31459.0,0.13632608]
[1609788722233,0.13632608,31461.0,31460.0,0.0938]
[1609788722633,0.13632608,31461.0,31459.0,0.13632608]
[1609788723937,0.13632608,31461.0,31460.0,0.0958]
[1609788724635,0.13632608,31461.0,31459.0,0.13632608]
[1609788725637,0.13632608,31461.0,31460.0,0.096]
[1609788725939,0.13632608,31461.0,31459.0,0.13632608]
[1609788727043,0.13632608,31461.0,31460.0,0.0954]
[1609788728343,0.13632608,31461.0,31459.0,0.13632608]
[1609788729343,0.13632608,31461.0,31460.0,0.0945]
[1609788730246,0.13632608,31461.0,31459.0,0.13632608]
[1609788732050,0.13632608,31461.0,31460.0,0.0955]
[1609788732551,0.13632608,31461.0,31459.0,0.13632608]
[1609788734057,0.1365,31479.0,31459.0,0.13632608]
[1609788734251,0.563,31485.0,31459.0,4.52822608]
[1609788735252,0.563,31485.0,31469.0,0.13632608]
[1609788737154,0.13632608,31470.0,31469.0,0.13632608]
[1609788738354,0.563,31485.0,31469.0,0.13632608]
[1609788739055,0.563,31485.0,31469.0,0.26239608]
[1609788739255,0.563,31485.0,31470.0,5.0141]
[1609788739456,0.2734,31485.0,31470.0,5.0141]
[1609788739857,0.2734,31485.0,31484.0,0.13632608]
[1609788740261,0.1786,31485.0,31484.0,0.13632608]
[1609788740462,0.13632608,31487.0,31484.0,0.13632608]
[1609788740659,0.11063,31494.0,31484.0,0.13632608]
[1609788740860,0.69163223,31495.0,31484.0,0.13632608]
[1609788741662,4.82013223,31495.0,31484.0,0.13632608]
[1609788741861,4.82013223,31495.0,31488.0,0.13632608]
[1609788742262,4.82013223,31495.0,31479.0,0.12633]
[1609788742664,4.1285,31495.0,31479.0,0.12633]
[1609788743064,0.11819,31498.0,31479.0,0.12633]
[1609788743264,5.0045,31486.0,31479.0,0.12633]
[1609788743464,0.11819,31498.0,31479.0,0.12633]
[1609788743663,4.8545,31480.0,31479.0,0.12633]
[1609788743863,4.99082608,31480.0,31479.0,0.12633]
[1609788744063,4.99082608,31480.0,31475.0,0.0952]
[1609788744463,4.99082608,31480.0,31463.0,1.89666528]
[1609788744964,4.99082608,31480.0,31466.0,1.90343002]
[1609788745868,0.13632608,31467.0,31466.0,1.90343002]
[1609788746266,0.13632608,31467.0,31466.0,1.99943002]
[1609788746567,0.13632608,31467.0,31466.0,1.90343002]
[1609788746768,0.13632608,31467.0,31463.0,0.13632608]
[1609788748472,4.37392608,31467.0,31463.0,0.13632608]
[1609788757679,0.13632608,31467.0,31463.0,0.13632608]
[1609788758780,5.3231,31464.0,31463.0,0.13632608]
[1609788758984,0.13632608,31467.0,31458.0,0.14482]
[1609788759188,3.8568,31459.0,31456.0,1.92000245]
[1609788759798,3.8568,31459.0,31455.0,1.92206044]
[1609788759989,0.13632608,31456.0,31455.0,1.92206044]
[1609788761684,0.13632608,31456.0,31450.0,0.14058]
[1609788761885,0.13632608,31456.0,31447.0,1.92876878]
[1609788762086,0.13632608,31448.0,31447.0,1.92876878]
[1609788763588,0.13632608,31448.0,31442.0,1.93209408]
[1609788763589,3.8426,31445.0,31442.0,1.93209408]
[1609788764390,3.8426,31445.0,31443.0,0.14746]
[1609788766094,0.13632608,31444.0,31443.0,0.14746]
[1609788767892,0.2734,31464.0,31443.0,0.14746]
[1609788768093,0.2734,31464.0,31449.0,5.0795]
[1609788769895,0.2734,31464.0,31450.0,0.19275]
[1609788770095,0.2734,31464.0,31462.0,0.13632608]
[1609788771694,0.2734,31464.0,31456.0,0.0965]
[1609788771894,0.2734,31464.0,31452.0,1.92594231]
[1609788772095,0.13632608,31453.0,31452.0,1.92594231]
[1609788772294,0.13632608,31453.0,31452.0,2.02194231]
[1609788772696,0.13632608,31453.0,31452.0,0.096]
[1609788773097,0.13632608,31453.0,31450.0,2.10026813]
[1609788774196,0.13632608,31453.0,31447.0,2.27529047]
[1609788774197,0.13632608,31453.0,31447.0,0.13632608]
[1609788776200,0.13632608,31448.0,31447.0,0.13632608]
[1609788783109,0.1392,31457.0,31447.0,0.13632608]
[1609788783412,0.2734,31464.0,31447.0,0.13632608]
[1609788784111,0.2734,31464.0,31454.0,0.13632608]
[1609788786214,0.13632608,31455.0,31454.0,0.13632608]
[1609788791721,0.04072608,31455.0,31454.0,5.31942608]
[1609788791921,0.69416187,31483.0,31454.0,5.1831]
[1609788792120,0.69416187,31483.0,31448.0,1.92335584]
[1609788792121,0.62456187,31483.0,31448.0,1.92335584]
[1609788792321,0.22407723,31486.0,31472.0,5.3067]
[1609788792521,0.20824269,31493.0,31482.0,0.13632608]
[1609788792722,1.34627714,31498.0,31485.0,4.5278]
[1609788792922,1.69123883,31501.0,31482.0,0.13353]
[1609788793123,1.40703883,31501.0,31500.0,4.7245]
[1609788793323,1.22367824,31512.0,31500.0,4.85309]
[1609788793522,0.0958,31515.0,31500.0,0.12859]
[1609788793722,1.49237422,31516.0,31500.0,0.12859]
[1609788793928,1.18177422,31516.0,31515.0,4.0903]
[1609788794123,0.47587422,31516.0,31515.0,4.23538]
[1609788794325,0.0953,31553.0,31515.0,4.23538]
[1609788794523,0.0953,31553.0,31515.0,0.28140608]
[1609788794724,0.0953,31553.0,31550.0,4.8947]
[1609788795125,0.0953,31553.0,31549.0,0.10906]
[1609788795326,0.0964,31555.0,31549.0,0.10906]
[1609788795726,0.0825,31555.0,31554.0,5.2337]
[1609788795927,0.028,31563.0,31554.0,5.3274]
[1609788796128,0.3871,31576.0,31554.0,0.0937]
[1609788796326,0.1771,31616.0,31554.0,0.0937]
[1609788796530,0.13632608,31584.0,31566.0,0.13632608]
[1609788796729,0.0949,31583.0,31567.0,5.2207]
[1609788796929,0.13632608,31584.0,31567.0,5.3688]
[1609788797129,0.13632608,31584.0,31580.0,4.8776]
[1609788797330,0.13632608,31584.0,31580.0,5.02272]
[1609788797530,0.1771,31622.0,31580.0,5.02272]
[1609788797731,0.0951,31640.0,31580.0,5.02272]
[1609788797930,0.1771,31639.0,31580.0,0.14512]
[1609788798130,0.5331,31639.0,31596.0,4.7737]
[1609788798331,0.1771,31639.0,31596.0,4.7737]
[1609788798531,0.1771,31639.0,31600.0,0.13632608]
[1609788798731,0.0945,31634.0,31600.0,0.13632608]
[1609788799331,0.56986077,31634.0,31600.0,0.13632608]
[1609788799633,0.56986077,31634.0,31601.0,0.096]
[1609788799833,0.0945,31634.0,31601.0,0.096]
[1609788800033,0.0951,31640.0,31601.0,0.096]
[1609788800233,0.0956,31658.0,31622.0,5.84541417]
[1609788800533,0.0956,31658.0,31622.0,9.81271417]
[1609788800934,0.13632608,31641.0,31635.0,0.13632608]
[1609788801133,0.28649608,31641.0,31622.0,5.84541417]
[1609788801535,0.26377949,31641.0,31622.0,5.84541417]
[1609788802435,0.15017,31641.0,31622.0,5.84541417]
[1609788803434,0.15017,31641.0,31636.0,0.13632608]
[1609788804237,0.15017,31641.0,31633.0,4.6056]
[1609788804636,0.0937,31663.0,31640.0,8.88815603]
[1609788804836,0.0938,31669.0,31640.0,8.88815603]
[1609788805236,0.24048,31669.0,31640.0,8.85475603]
[1609788805437,0.13632608,31641.0,31640.0,8.85475603]
[1609788805637,0.26048608,31641.0,31640.0,8.85475603]
[1609788805838,0.12416,31641.0,31640.0,8.85475603]
[1609788806039,0.14668,31669.0,31640.0,8.85475603]
[1609788806238,0.14668,31669.0,31640.0,13.79815603]
[1609788806639,0.14668,31669.0,31640.0,13.91782603]
[1609788807440,0.14668,31669.0,31657.0,0.13632608]
[1609788807639,0.0933,31687.0,31657.0,0.13632608]
[1609788807839,0.0933,31687.0,31640.0,13.91782603]
[1609788808039,0.12740316,31678.0,31640.0,13.91782603]
[1609788808639,0.10485,31678.0,31673.0,1.70895118]
[1609788809440,0.10485,31678.0,31673.0,1.70455118]
[1609788809640,0.13632608,31674.0,31673.0,1.60195118]
[1609788809840,0.00892292,31674.0,31669.0,1.85281918]
[1609788810039,0.00892292,31674.0,31669.0,1.75701918]
[1609788810939,0.00892292,31674.0,31670.0,0.0958]
[1609788811541,0.00892292,31674.0,31671.0,0.13632608]
[1609788812243,0.0944,31694.0,31671.0,0.13632608]
[1609788812643,0.0944,31694.0,31676.0,4.3477]
[1609788812843,0.5331,31731.0,31676.0,4.3477]
[1609788813444,0.5331,31731.0,31553.0,1.99017246]
[1609788813445,0.0936,31719.0,31654.0,0.12485]
[1609788813645,0.15991,31700.0,31655.0,0.0936]
[1609788813847,0.5286,31697.0,31655.0,0.0936]
[1609788814047,0.0935,31696.0,31655.0,0.0936]
[1609788814247,0.13632608,31656.0,31655.0,0.0936]
[1609788814447,0.0935,31696.0,31655.0,0.0936]
[1609788814448,0.10448,31662.0,31655.0,0.0936]
[1609788814648,0.10448,31662.0,31562.0,1.9832601]
[1609788815047,0.10448,31662.0,31597.0,5.0914]
[1609788816148,0.13632608,31637.0,31635.0,0.13632608]
[1609788816348,0.13632608,31637.0,31571.0,3.9691]
[1609788816749,0.27492608,31637.0,31571.0,3.9691]
[1609788817852,0.1386,31637.0,31571.0,3.9691]
[1609788818253,0.1386,31637.0,31627.0,0.13632608]
[1609788819055,0.7362,31637.0,31627.0,0.13632608]
[1609788819254,0.1386,31637.0,31627.0,0.13632608]
[1609788819456,5.0732,31632.0,31627.0,0.13632608]
[1609788820055,5.0732,31632.0,31596.0,4.8615]
[1609788820557,0.13632608,31625.0,31621.0,0.13632608]
[1609788820756,0.29065608,31625.0,31621.0,0.13632608]
[1609788821057,0.6338,31624.0,31621.0,0.13632608]
[1609788821257,0.29065608,31625.0,31532.0,2.02237597]
[1609788821458,0.29065608,31625.0,31587.0,3.91112973]
[1609788821657,3.7205,31621.0,31587.0,3.91112973]
[1609788822258,0.29065608,31625.0,31587.0,3.91112973]
[1609788822659,0.15433,31625.0,31622.0,0.13632608]
[1609788822859,0.15433,31625.0,31587.0,3.91112973]
[1609788824564,0.15433,31625.0,31616.0,0.13632608]
[1609788825264,0.15433,31625.0,31587.0,3.91112973]
[1609788825863,0.1386,31637.0,31587.0,3.91112973]
[1609788826064,3.7439,31641.0,31587.0,3.91112973]
[1609788826664,3.7439,31641.0,31640.0,0.13632608]
[1609788826865,0.11551,31647.0,31640.0,0.13632608]
[1609788827065,4.0678,31660.0,31618.0,4.5978]
[1609788828967,0.13632608,31629.0,31622.0,0.13632608]
[1609788829767,0.0986,31630.0,31622.0,0.13632608]
[1609788830569,4.4634,31659.0,31622.0,0.25388608]
[1609788830969,4.4634,31659.0,31656.0,0.13632608]
[1609788831171,0.2744,31660.0,31622.0,0.11756]
[1609788831370,0.2744,31660.0,31635.0,4.8831]
[1609788832984,0.2744,31660.0,31659.0,0.13632608]
[1609788833573,0.13632608,31664.0,31659.0,0.13632608]
[1609788833780,0.13632608,31664.0,31636.0,0.12258]
[1609788834970,3.9941,31675.0,31658.0,0.13632608]
[1609788836271,0.2849,31685.0,31658.0,0.13632608]
[1609788837070,0.2849,31685.0,31664.0,0.13632608]
[1609788838673,0.2849,31685.0,31649.0,0.10848]
[1609788838874,0.38397,31685.0,31649.0,0.10848]
[1609788839274,0.38397,31685.0,31679.0,0.13632608]
[1609788840680,0.38397,31685.0,31680.0,0.0956]
[1609788840878,0.09907,31685.0,31679.0,0.13632608]
[1609788841278,0.09907,31685.0,31684.0,0.13632608]
[1609788842480,0.09907,31685.0,31678.0,0.0935]
[1609788842683,0.09907,31685.0,31663.0,0.15463]
[1609788843284,0.09907,31685.0,31675.0,0.13632608]
[1609788843782,0.09907,31685.0,31676.0,0.0945]
[1609788843982,0.2748,31693.0,31676.0,0.0945]
[1609788844384,0.2748,31693.0,31675.0,0.13632608]
[1609788844583,0.40969,31693.0,31675.0,0.13632608]
[1609788845283,0.40969,31693.0,31686.0,0.13632608]
[1609788846083,0.40969,31693.0,31678.0,0.0954]
[1609788846885,0.40969,31693.0,31663.0,0.15048]
[1609788847285,0.40969,31693.0,31665.0,0.13632608]
[1609788847686,0.40969,31693.0,31663.0,0.15048]
[1609788847887,0.40969,31693.0,31659.0,0.0944]
[1609788848088,0.50539,31693.0,31659.0,0.0944]
[1609788848489,4.0379,31676.0,31630.0,4.641]
[1609788848686,0.50539,31693.0,31605.0,0.0945]
[1609788848886,3.95341,31662.0,31612.0,5.2005]
[1609788849286,3.95341,31662.0,31637.0,0.13632608]
[1609788849487,3.95341,31662.0,31637.0,0.28466608]
[1609788851287,3.95341,31662.0,31629.0,0.10343]
[1609788851288,3.95341,31662.0,31643.0,0.13632608]
[1609788851689,3.95341,31662.0,31644.0,0.0955]
[1609788851887,3.95341,31662.0,31643.0,0.13632608]
[1609788853188,0.13632608,31644.0,31643.0,0.13632608]
[1609788853891,0.13632608,31644.0,31643.0,0.23212608]
[1609788854089,0.13494,31647.0,31629.0,0.10343]
[1609788855192,0.13494,31647.0,31637.0,0.13632608]
[1609788855392,4.736,31646.0,31637.0,0.13632608]
[1609788855994,4.736,31646.0,31578.0,0.383]
[1609788856396,4.736,31646.0,31592.0,1.78382105]
[1609788856595,4.736,31646.0,31599.0,0.0935]
[1609788857494,4.736,31646.0,31622.0,0.14563]
[1609788859197,0.13494,31647.0,31622.0,0.14563]
[1609788859396,5.08876,31634.0,31615.0,0.14312]
[1609788860997,5.08876,31634.0,31599.0,0.0959]
[1609788861401,5.08876,31634.0,31618.0,0.13632608]
[1609788861600,5.08876,31634.0,31619.0,0.094]
[1609788862403,0.11916,31634.0,31619.0,0.094]
[1609788863302,0.25548608,31634.0,31632.0,0.13632608]
[1609788865106,0.11916,31634.0,31632.0,0.13632608]
[1609788865307,0.13632608,31647.0,31632.0,0.13632608]
[1609788865508,0.68234785,31655.0,31632.0,0.13632608]
[1609788865907,0.68234785,31655.0,31632.0,0.27829608]
[1609788866206,0.68234785,31655.0,31632.0,0.14197]
[1609788867308,0.68234785,31655.0,31654.0,0.13632608]
[1609788867509,0.68234785,31655.0,31654.0,0.25699608]
[1609788868509,0.68234785,31655.0,31654.0,0.35139608]
[1609788868710,0.66974785,31655.0,31654.0,0.21507]
[1609788869309,0.24074785,31655.0,31654.0,0.21507]
[1609788869509,0.24074785,31655.0,31654.0,0.35139608]
[1609788869910,0.12504785,31655.0,31654.0,0.35139608]
[1609788870111,0.09294785,31655.0,31654.0,0.25699608]
[1609788871110,0.09294785,31655.0,31654.0,0.35039608]
[1609788871910,0.07734785,31655.0,31654.0,0.35039608]
[1609788872110,0.66228645,31658.0,31654.0,0.25699608]
[1609788872312,0.59218645,31658.0,31654.0,0.25699608]
[1609788873012,0.59218645,31658.0,31655.0,0.0952]
[1609788873212,0.57798645,31658.0,31655.0,0.0952]
[1609788873412,0.57798645,31658.0,31654.0,0.25699608]
[1609788873613,0.54628645,31658.0,31654.0,0.25699608]
[1609788874016,0.13632608,31679.0,31654.0,0.25699608]
[1609788874413,0.13632608,31679.0,31655.0,0.0957]
[1609788874914,3.37617399,31681.0,31657.0,5.86947685]
[1609788875313,0.8864,31788.0,31657.0,5.86947685]
[1609788875513,5.255,31726.0,31661.0,4.9677]
[1609788875713,0.2268,31682.0,31661.0,5.06914]
[1609788876113,0.1796,31682.0,31681.0,0.13632608]
[1609788876716,0.2881,31718.0,31681.0,0.13632608]
[1609788877113,0.2881,31718.0,31678.0,5.86542786]
[1609788877313,0.42759,31718.0,31678.0,5.86542786]
[1609788877714,0.42759,31718.0,31679.0,4.8888]
[1609788877914,0.42759,31718.0,31681.0,5.84010262]
[1609788878114,0.42759,31718.0,31696.0,0.13632608]
[1609788878715,0.42759,31718.0,31684.0,0.1129]
[1609788879516,0.42759,31718.0,31704.0,1.78050926]
[1609788879517,0.13868872,31718.0,31704.0,1.78050926]
[1609788880116,0.13632608,31705.0,31704.0,1.91683534]
[1609788880315,0.13632608,31705.0,31704.0,1.78050926]
[1609788880514,0.28428608,31705.0,31704.0,1.78050926]
[1609788881217,0.28428608,31705.0,31704.0,1.76360926]
[1609788881418,0.14559736,31705.0,31701.0,1.94250006]
[1609788882217,0.14559736,31705.0,31704.0,0.13632608]
[1609788883019,0.13868872,31718.0,31704.0,0.13632608]
[1609788883220,3.5893,31730.0,31704.0,0.13632608]
[1609788883619,3.5893,31730.0,31704.0,0.23102608]
[1609788884119,0.13632608,31705.0,31704.0,2.07577341]
[1609788885520,0.13632608,31705.0,31704.0,0.13632608]
[1609788885720,0.11791,31720.0,31704.0,0.13632608]
[1609788886120,0.11791,31720.0,31709.0,0.13632608]
[1609788887223,0.11791,31720.0,31710.0,0.0955]
[1609788887422,0.11791,31720.0,31713.0,0.13632608]
[1609788887622,0.11791,31720.0,31709.0,0.13632608]
[1609788888122,0.13632608,31710.0,31709.0,0.13632608]
[1609788888322,0.13632608,31710.0,31709.0,0.11612608]
[1609788888922,0.13632608,31710.0,31709.0,0.21102608]
[1609788889325,0.15169,31713.0,31706.0,1.93776973]
[1609788890024,3.29307972,31730.0,31705.0,1.93884628]
[1609788890224,3.29307972,31730.0,31714.0,0.13632608]
[1609788890626,3.38757972,31730.0,31708.0,0.0943]
[1609788890825,0.22031,31730.0,31678.0,3.23241222]
[1609788891025,4.1187,31721.0,31679.0,3.8856]
[1609788891225,4.21618,31721.0,31679.0,3.8856]
[1609788891427,4.21618,31721.0,31695.0,2.42355785]
[1609788892126,4.21618,31721.0,31704.0,0.13632608]
[1609788892525,4.21618,31721.0,31704.0,0.09772608]
[1609788892925,4.21618,31721.0,31701.0,0.0943]
[1609788893225,4.21618,31721.0,31695.0,2.42355785]
[1609788893626,0.09748,31721.0,31695.0,2.42355785]
[1609788894226,0.09748,31721.0,31708.0,0.13632608]
[1609788895734,0.09748,31721.0,31709.0,0.0957]
[1609788896331,0.12581,31730.0,31713.0,0.13632608]
[1609788896530,0.0931,31729.0,31713.0,0.13632608]
[1609788896734,0.2273,31729.0,31713.0,0.13632608]
[1609788896934,0.1342,31729.0,31713.0,0.13632608]
[1609788898234,0.1342,31729.0,31728.0,0.13632608]
[1609788898435,0.1342,31729.0,31718.0,0.16107]
[1609788899235,0.14932,31736.0,31718.0,0.16107]
[1609788900236,0.14932,31736.0,31731.0,0.13632608]
[1609788900637,0.14932,31736.0,31718.0,4.02887]
[1609788901036,0.08596408,31743.0,31725.0,1.75279868]
[1609788901236,0.15506,31740.0,31725.0,1.75279868]
[1609788902237,0.15506,31740.0,31730.0,0.13632608]
[1609788902437,0.15506,31740.0,31731.0,0.0953]
[1609788902641,0.15506,31740.0,31725.0,1.75279868]
[1609788902844,0.15506,31740.0,31725.0,1.69899868]
[1609788903037,0.15506,31740.0,31725.0,1.60349868]
[1609788903240,0.15506,31740.0,31725.0,1.39559868]
[1609788903440,0.15506,31740.0,31725.0,1.26129868]
[1609788904240,0.13632608,31726.0,31725.0,1.24379868]
[1609788904438,0.23352608,31726.0,31725.0,1.24379868]
[1609788905039,0.23352608,31726.0,31724.0,0.13632608]
[1609788905040,0.09987745,31740.0,31724.0,0.13632608]
[1609788905240,0.09765,31729.0,31724.0,0.13632608]
[1609788905642,0.09765,31729.0,31720.0,1.90334522]
[1609788906243,3.29216392,31738.0,31725.0,1.89771652]
[1609788906643,3.29216392,31738.0,31728.0,0.13632608]
[1609788906843,3.29216392,31738.0,31725.0,1.89771652]
[1609788908262,2.90714743,31738.0,31731.0,3.0]
[1609788908646,2.90714743,31738.0,31731.0,2.9933]
[1609788908846,2.90714743,31738.0,31731.0,2.8513]
[1609788909053,2.90714743,31738.0,31731.0,2.8359]
[1609788909257,0.13632608,31732.0,31731.0,2.8359]
[1609788909458,0.86722608,31732.0,31731.0,1.6069]
[1609788909660,1.00353608,31732.0,31731.0,1.4021]
[1609788909854,1.00353608,31732.0,31731.0,1.1353]
[1609788910252,1.00353608,31732.0,31731.0,0.7292]
[1609788910452,1.00353608,31732.0,31731.0,0.1314]
[1609788910453,0.86721,31732.0,31731.0,0.1314]
[1609788910658,0.0944,31731.0,31707.0,1.8773182]
[1609788910852,0.0944,31731.0,31707.0,1.5420182]
[1609788911052,0.0944,31731.0,31707.0,1.4494182]
[1609788911658,0.13632608,31708.0,31701.0,0.0957]
[1609788912056,5.0531,31703.0,31701.0,0.0957]
[1609788912453,5.0531,31703.0,31700.0,0.5]
[1609788912652,0.15102,31708.0,31700.0,0.5]
[1609788913654,0.15102,31708.0,31705.0,0.13632608]
[1609788914253,0.15102,31708.0,31705.0,0.10452608]
[1609788914455,0.15102,31708.0,31705.0,0.04172608]
[1609788914654,0.15102,31708.0,31705.0,0.03332608]
[1609788915556,0.13632608,31706.0,31705.0,0.03332608]